bitfinex/quotes_SOLUSD_20250317
["timestamp","ask_amount","ask_price","bid_price","bid_amount"]
[1742194858411,0.03,128.47,128.46,301.62729115]
[1742194858630,0.03,128.5,128.47,18.79181043]
[1742194858807,0.03,128.5,128.47,111.38028282]
[1742194859007,0.03,128.5,128.47,423.38028282]
[1742194859225,0.03,128.5,128.47,422.21331426]
[1742194859519,0.03,128.5,128.49,18.79181043]
[1742194859829,2.8179255,128.52,128.51,6.64346157]
[1742194860010,2.8179255,128.52,128.51,160.36720132]
[1742194860204,2.8179255,128.52,128.51,124.49601426]
[1742194861499,2.8179255,128.52,128.51,116.71461426]
[1742194861714,2.8179255,128.52,128.51,99.44964886]
[1742194862123,2.8179255,128.52,128.51,110.07115269]
[1742194862825,2.8179255,128.52,128.51,117.85255269]
[1742194863026,2.8179255,128.52,128.51,110.07115269]
[1742194863224,2.8179255,128.52,128.51,80.8]
[1742194864032,2.8179255,128.52,128.51,99.20290383]
[1742194864200,2.8179255,128.52,128.51,117.85255269]
[1742194864402,2.8179255,128.52,128.51,118.13687583]
[1742194864633,2.8179255,128.52,128.51,119.30351]
[1742194865006,0.03,128.56,128.53,0.14216157]
[1742194865220,0.03,128.56,128.55,29.27115269]
[1742194866408,0.03,128.56,128.55,37.05015269]
[1742194866826,0.03,128.56,128.55,37.33447583]
[1742194867126,0.03,128.56,128.55,117.99231426]
[1742194867426,0.03,128.56,128.55,118.13447583]
[1742194867727,0.03,128.56,128.55,126.30557583]
[1742194867912,0.03,128.56,128.55,261.97186798]
[1742194868111,0.03,128.56,128.55,260.80557583]
[1742194868511,0.080083,128.6,128.59,29.27115269]
[1742194868719,0.080083,128.6,128.59,117.01331426]
[1742194869618,0.080083,128.6,128.59,258.17457583]
[1742194870224,18.39290383,128.68,128.61,0.14216157]
[1742194870225,20.0,128.68,128.61,0.14216157]
[1742194870428,18.39240383,128.69,128.64,10.62150383]
[1742194870613,18.39240383,128.69,128.64,17.42150383]
[1742194870929,7.7709,128.69,128.64,17.42150383]
[1742194871110,24.29528248,128.69,128.64,23.32438248]
[1742194871532,7.7709,128.69,128.64,23.32438248]
[1742194871718,24.29528248,128.69,128.64,23.32438248]
[1742194871919,16.52438248,128.7,128.65,16.52438248]
[1742194872432,16.52438248,128.69,128.65,18.64964886]
[1742194872616,0.03,128.73,128.68,18.46070562]
[1742194872817,0.03,128.73,128.71,16.52438248]
[1742194873029,0.03,128.73,128.71,97.32438248]
[1742194873210,0.03,128.73,128.72,35.31619291]
[1742194874438,0.03,128.73,128.72,43.08499291]
[1742194874931,0.03,128.73,128.72,265.04625448]
[1742194875614,0.03,128.73,128.72,576.90409291]
[1742194877535,0.03,128.73,128.72,577.04625448]
[1742194878233,2.7879255,128.77,128.75,0.14216157]
[1742194878436,2.7879255,128.77,128.75,87.55]
[1742194879020,10.5537255,128.77,128.75,87.55]
[1742194879222,10.5537255,128.77,128.75,80.77]
[1742194879837,27.07810798,128.77,128.73,6.78]
[1742194880062,27.07810798,128.77,128.73,18.64964886]
[1742194880228,27.07810798,128.77,128.73,35.17403134]
[1742194880229,2.7879255,128.77,128.73,35.17403134]
[1742194880428,10.5537255,128.77,128.73,35.17403134]
[1742194880637,10.5537255,128.77,128.73,18.64964886]
[1742194880832,27.07810798,128.77,128.73,18.64964886]
[1742194881624,10.5537255,128.77,128.73,35.17403134]
[1742194882139,27.07810798,128.77,128.73,18.64964886]
[1742194883443,27.07810798,128.77,128.73,99.41964886]
[1742194883745,2.7879255,128.77,128.73,115.94403134]
[1742194883945,10.5538255,128.77,128.73,115.94403134]
[1742194885840,10.5838255,128.77,128.73,115.94403134]
[1742194886424,2.8179255,128.77,128.74,16.52438248]
[1742194886621,2.8179255,128.77,128.74,23.30438248]
[1742194886831,2.8179255,128.77,128.75,18.64964886]
[1742194887048,2.8179255,128.77,128.75,99.41964886]
[1742194889425,10.5838255,128.77,128.75,80.77]
[1742194889840,2.8179255,128.77,128.76,18.64964886]
[1742194890355,2.8179255,128.77,128.75,18.64964886]
[1742194890946,2.8179255,128.77,128.74,6.78]
[1742194891143,27.10800798,128.77,128.74,6.78]
[1742194891446,19.34230798,128.77,128.74,6.78]
[1742194891645,16.52438248,128.76,128.74,6.78]
[1742194891851,16.52438248,128.76,128.72,153.21264886]
[1742194892037,16.52438248,128.76,128.72,241.78134886]
[1742194892544,22.8179255,128.77,128.73,35.17403134]
[1742194892748,2.8179255,128.77,128.74,16.52438248]
[1742194892945,2.8179255,128.77,128.75,16.52438248]
[1742194893145,2.8179255,128.77,128.75,80.8]
[1742194894556,19.34230798,128.77,128.75,80.8]
[1742194894731,27.10810798,128.77,128.75,80.8]
[1742194895353,2.8179255,128.77,128.75,80.8]
[1742194896539,2.8179255,128.77,128.76,35.17403134]
[1742194896737,2.8179255,128.77,128.76,115.97403134]
[1742194896939,2.8179255,128.77,128.76,99.44964886]
[1742194897134,2.8179255,128.77,128.76,107.21594886]
[1742194897729,2.8179255,128.77,128.76,99.44964886]
[1742194897930,2.8179255,128.77,128.76,80.8]
[1742194898952,27.10800798,128.77,128.76,80.8]
[1742194899158,19.34230798,128.77,128.76,80.8]
[1742194899455,27.10800798,128.77,128.76,80.8]
[1742194899639,2.8179255,128.77,128.76,80.8]
[1742194905658,2.8179255,128.77,128.76,107.21594886]
[1742194906557,2.8179255,128.77,128.76,99.44964886]
[1742194906856,2.8179255,128.77,128.76,80.8]
[1742194907242,2.8179255,128.77,128.76,88.5663]
[1742194907649,2.8179255,128.77,128.76,107.21594886]
[1742194908651,2.8179255,128.77,128.76,99.44964886]
[1742194908851,2.8179255,128.77,128.76,107.21594886]
[1742194910268,2.8179255,128.77,128.76,99.44964886]
[1742194910443,2.8179255,128.77,128.76,107.21594886]
[1742194912460,2.8179255,128.77,128.76,99.44964886]
[1742194913461,2.8179255,128.77,128.76,80.8]
[1742194914047,2.8179255,128.77,128.76,99.44964886]
[1742194914464,2.8179255,128.77,128.76,80.8]
[1742194920251,2.8179255,128.77,128.76,99.44964886]
[1742194920987,2.8179255,128.77,128.76,80.8]
[1742194924083,2.8179255,128.77,128.76,107.21594886]
[1742194927887,2.8179255,128.77,128.76,99.44964886]
[1742194928769,2.8179255,128.77,128.76,80.8]
[1742194933964,2.8179255,128.77,128.76,107.35811043]
[1742194934170,2.8179255,128.77,128.76,99.44964886]
[1742194937593,2.8179255,128.77,128.76,80.8]
[1742194939094,21.14314637,128.77,128.76,80.8]
[1742194939500,2.8179255,128.77,128.76,80.8]
[1742194939679,13.37744637,128.77,128.76,80.8]
[1742194942099,2.8179255,128.77,128.76,80.8]
[1742194942299,13.37744637,128.77,128.76,80.8]
[1742194942894,21.14314637,128.77,128.76,80.8]
[1742194943081,13.37744637,128.77,128.76,80.8]
[1742194944072,2.8179255,128.77,128.76,99.44964886]
[1742194944788,2.8179255,128.77,128.76,107.35811043]
[1742194944994,2.8179255,128.77,128.76,124.6976313]
[1742194946399,2.8179255,128.77,128.76,114.13811043]
[1742194947179,2.8179255,128.77,128.76,113.99594886]
[1742194947694,2.8179255,128.77,128.76,106.22964886]
[1742194948088,2.8179255,128.77,128.76,113.99594886]
[1742194948291,2.8179255,128.77,128.76,114.13811043]
[1742194951403,2.8179255,128.77,128.76,106.22964886]
[1742194954498,13.37744637,128.77,128.76,80.8]
[1742194960707,2.8179255,128.77,128.76,80.8]
[1742194961413,13.37744637,128.77,128.76,80.8]
[1742194962905,21.14314637,128.77,128.76,80.8]
[1742194963091,13.37744637,128.77,128.73,7.768]
[1742194963788,2.8179255,128.77,128.73,18.32752087]
[1742194964115,13.37744637,128.77,128.73,18.32752087]
[1742194964496,13.37744637,128.77,128.73,7.768]
[1742194966800,10.55952087,128.74,128.72,80.863]
[1742194967000,10.55952087,128.73,128.72,80.863]
[1742194967516,10.55952087,128.74,128.72,80.863]
[1742194969517,10.55952087,128.73,128.72,80.863]
[1742194970719,18.32762087,128.73,128.72,80.863]
[1742194972400,18.32762087,128.73,128.72,0.063]
[1742194974015,10.55952087,128.73,128.72,0.063]
[1742194974228,18.32762087,128.73,128.72,0.063]
[1742194974916,10.55952087,128.73,128.72,0.063]
[1742194975147,7.7672,128.75,128.72,0.063]
[1742194975423,10.55952087,128.74,128.72,0.063]
[1742194976196,10.55952087,128.73,128.72,0.063]
[1742194976401,10.55952087,128.74,128.72,0.063]
[1742194977916,10.55952087,128.73,128.72,0.063]
[1742194980899,10.5837255,128.77,128.72,18.71264886]
[1742194981203,10.55952087,128.75,128.72,99.51264886]
[1742194981427,10.5837255,128.77,128.72,99.51264886]
[1742194981631,10.55952087,128.75,128.72,99.51264886]
[1742194982004,10.55952087,128.75,128.72,107.28094886]
[1742194982212,2.8179255,128.77,128.72,117.84046973]
[1742194982425,2.8179255,128.77,128.74,18.64964886]
[1742194982615,13.37744637,128.77,128.74,18.64964886]
[1742194982819,10.55952087,128.76,128.74,18.64964886]
[1742194983717,2.8179255,128.77,128.74,18.64964886]
[1742194984026,2.8179255,128.77,128.75,7.7669]
[1742194984230,2.8179255,128.77,128.75,88.5669]
[1742194984420,2.8179255,128.77,128.76,18.64964886]
[1742194984609,2.8179255,128.77,128.76,99.44964886]
[1742194985213,2.8179255,128.77,128.76,105.74001043]
[1742194985416,2.8179255,128.77,128.76,428.2995313]
[1742194986013,2.8179255,128.77,128.76,436.0658313]
[1742194986627,2.8179255,128.77,128.76,570.70799287]
[1742194988128,10.55952087,128.82,128.78,0.14216157]
[1742194988315,1.6294,128.87,128.81,18.79181043]
[1742194988511,10.55952087,128.84,128.81,96.77388493]
[1742194988711,10.55952087,128.83,128.81,96.63172336]
[1742194989436,15.90833007,128.83,128.81,96.63172336]
[1742194989812,15.90833007,128.83,128.81,104.39472336]
[1742194991211,15.90833007,128.83,128.81,96.63172336]
[1742194992135,10.55952087,128.82,128.81,77.9820745]
[1742194995632,18.32222087,128.82,128.81,77.9820745]
[1742194996542,18.32222087,128.82,128.77,247.30142336]
[1742194996746,10.55952087,128.8,128.77,112.80142336]
[1742194998241,10.55952087,128.81,128.78,18.64964886]
[1742194999151,10.55952087,128.81,128.79,7.7645]
[1742195000318,5.3488092,128.83,128.79,7.7645]
[1742195000535,10.55952087,128.82,128.79,7.7645]
[1742195002341,10.55952087,128.82,128.79,85.7465745]
[1742195004229,15.90833007,128.83,128.79,85.7465745]
[1742195005045,15.90833007,128.83,128.8,6.56]
[1742195005223,15.90833007,128.83,128.8,84.5420745]
[1742195005637,15.90833007,128.83,128.8,92.3055745]
[1742195005821,10.55952087,128.82,128.8,84.5420745]
[1742195006738,10.55952087,128.81,128.8,77.9820745]
[1742195007539,13.1111092,128.83,128.8,77.9820745]
[1742195007742,10.55952087,128.82,128.8,77.9820745]
[1742195008446,10.55952087,128.81,128.8,77.9820745]
[1742195012839,5.3488092,128.83,128.8,77.9820745]
[1742195012840,5.3488092,128.83,128.81,0.14216157]
[1742195013020,5.3488092,128.83,128.82,42.64386973]
[1742195013223,5.3488092,128.83,128.82,122.2953058]
[1742195014748,5.3488092,128.83,128.82,130.0580058]
[1742195015855,0.3488092,128.83,128.82,130.0580058]
[1742195016144,0.3488092,128.83,128.82,442.0580058]
[1742195016752,5.93833007,128.86,128.82,441.91584423]
[1742195017646,5.93833007,128.86,128.82,403.4167745]
[1742195017820,10.55952087,128.87,128.83,6.78]
[1742195018021,10.55952087,128.86,128.82,92.5247745]
[1742195018354,10.55952087,128.86,128.82,103.08429537]
[1742195019053,7.7585,128.89,128.82,103.08429537]
[1742195019347,10.55952087,128.86,128.82,103.08429537]
[1742195019726,12.8224,128.91,128.83,18.79181043]
[1742195019936,10.55952087,128.88,128.83,107.19124423]
[1742195020132,10.55952087,128.88,128.83,77.9820745]
[1742195020354,10.55952087,128.87,128.83,77.9820745]
[1742195021054,12.8224,128.91,128.83,77.9820745]
[1742195021228,10.55952087,128.88,128.83,96.30349537]
[1742195022450,1.5451,128.91,128.85,17.21422087]
[1742195022756,7.7572,128.92,128.86,17.33952087]
[1742195022949,10.55952087,128.9,128.86,6.78]
[1742195023152,7.7572,128.92,128.86,6.78]
[1742195023335,10.55952087,128.9,128.86,17.33952087]
[1742195024350,10.55952087,128.9,128.86,6.78]
[1742195024851,10.55952087,128.9,128.86,14.5403]
[1742195025554,7.7563,128.93,128.86,92.5223745]
[1742195025753,7.7563,128.93,128.87,10.55952087]
[1742195025962,10.55952087,128.89,128.86,396.7620745]
[1742195026139,7.7563,128.93,128.86,415.08179537]
[1742195026332,10.55952087,128.91,128.86,415.08179537]
[1742195026532,10.55952087,128.9,128.86,415.08179537]
[1742195027038,0.03,128.92,128.87,10.55952087]
[1742195027450,10.58952087,128.92,128.87,10.55952087]
[1742195027645,10.55952087,128.91,128.87,18.31892087]
[1742195027861,10.55952087,128.91,128.87,7.7594]
[1742195028242,0.03,128.92,128.87,7.7594]
[1742195028555,10.55952087,128.91,128.87,7.7594]
[1742195029959,0.03,128.92,128.87,7.7594]
[1742195030173,10.58952087,128.92,128.87,7.7594]
[1742195031036,10.58952087,128.92,128.88,26.40864886]
[1742195031238,0.03,128.92,128.89,10.55952087]
[1742195031763,10.55952087,128.95,128.91,18.64964886]
[1742195031934,7.7539,128.97,128.91,18.64964886]
[1742195032138,2.7242492,129.02,128.95,18.933972]
[1742195032443,2.7242492,129.02,128.96,6.78]
[1742195032444,10.55952087,129.01,128.96,6.78]
[1742195032644,10.55952087,129.0,128.96,6.78]
[1742195033158,10.55952087,129.0,128.96,326.5342]
[1742195033357,10.55952087,128.99,128.96,318.78]
[1742195033672,10.55952087,128.99,128.96,6.78]
[1742195033878,10.55952087,128.97,128.95,77.9820745]
[1742195034539,10.55952087,128.98,128.95,77.9820745]
[1742195034961,42.23808348,129.0,128.95,77.9820745]
[1742195035141,10.55952087,128.97,128.95,77.9820745]
[1742195036054,49.98998348,129.0,128.95,77.9820745]
[1742195036055,10.55952087,128.96,128.95,77.9820745]
[1742195036253,10.55952087,128.96,128.93,85.9147745]
[1742195036573,10.55952087,128.94,128.91,77.9820745]
[1742195036867,9.2676,128.99,128.91,77.9820745]
[1742195036868,10.55952087,128.93,128.91,77.9820745]
[1742195037051,10.55952087,128.92,128.91,77.9820745]
[1742195037238,10.55952087,128.94,128.91,77.9820745]
[1742195037948,10.55952087,128.95,128.91,85.7392745]
[1742195038458,10.55952087,128.95,128.91,96.29879537]
[1742195038661,10.55952087,128.95,128.91,77.9820745]
[1742195039052,10.58952087,128.94,128.91,77.9820745]
[1742195039255,16.48816383,128.94,128.91,77.9820745]
[1742195039446,16.45816383,128.93,128.91,77.9820745]
[1742195040061,6.8,128.97,128.91,77.9820745]
[1742195040270,16.45816383,128.95,128.91,77.9820745]
[1742195040868,7.7534,128.98,128.92,16.45816383]
[1742195041168,16.45816383,128.96,128.91,102.19743833]
[1742195041356,16.45816383,128.95,128.91,77.9820745]
[1742195041564,16.45816383,128.94,128.91,77.9820745]
[1742195043157,7.7545,128.96,128.91,77.9820745]
[1742195043364,16.45816383,128.95,128.91,77.9820745]
[1742195043658,16.45816383,128.96,128.91,102.19753833]
[1742195043863,7.7539,128.97,128.91,102.19753833]
[1742195044046,24.21206383,128.97,128.92,16.45816383]
[1742195044247,7.7539,128.97,128.91,102.19753833]
[1742195044451,16.45816383,128.96,128.91,102.19753833]
[1742195044664,16.45816383,128.95,128.91,102.19753833]
[1742195045059,16.45816383,128.95,128.91,94.44023833]
[1742195045261,16.45816383,128.94,128.91,77.9820745]
[1742195047475,7.7537,128.97,128.91,85.7392745]
[1742195047777,16.45816383,128.96,128.91,102.19743833]
[1742195049871,16.45816383,128.95,128.91,85.7392745]
[1742195050067,16.45816383,128.96,128.91,102.19743833]
[1742195051581,24.21246383,128.96,128.91,102.19743833]
[1742195051779,24.21246383,128.96,128.91,414.19743833]
[1742195051983,16.45816383,128.95,128.91,77.9820745]
[1742195052282,16.45816383,128.94,128.91,77.9820745]
[1742195052483,16.45816383,128.94,128.91,78.0450745]
[1742195052880,24.21416383,128.94,128.91,78.0450745]
[1742195053178,16.45816383,128.93,128.91,78.0450745]
[1742195053387,16.45816383,128.92,128.91,0.063]
[1742195055378,24.21486383,128.92,128.91,0.063]
[1742195058373,16.45816383,128.92,128.91,0.063]
[1742195059063,10.53851674,128.92,128.91,0.063]
[1742195059376,18.29521674,128.92,128.91,0.063]
[1742195060371,10.53851674,128.92,128.91,0.063]
[1742195061284,26.78,128.97,128.91,0.063]
[1742195061482,10.53851674,128.94,128.91,0.063]
[1742195061786,10.53851674,128.95,128.91,6.1028]
[1742195061988,10.53851674,128.95,128.91,84.0848745]
[1742195063095,10.53851674,128.94,128.91,91.8417745]
[1742195063788,10.53851674,128.95,128.91,91.8417745]
[1742195064584,10.53851674,128.97,128.92,10.53851674]
[1742195064788,10.53851674,128.98,128.93,18.64964886]
[1742195064995,10.53851674,128.98,128.93,96.63172336]
[1742195065291,16.44936178,128.98,128.94,7.7555]
[1742195065468,16.44936178,128.97,128.94,7.7555]
[1742195066274,0.03,128.95,128.94,7.7555]
[1742195067085,16.44936178,128.97,128.94,7.7555]
[1742195068288,16.44936178,128.98,128.94,85.7375745]
[1742195069100,16.44936178,128.97,128.94,85.7375745]
[1742195069472,16.44936178,128.96,128.94,77.9820745]
[1742195070080,16.44936178,128.97,128.94,77.9820745]
[1742195070473,16.44936178,128.97,128.94,85.7373745]
[1742195070672,7.7527,128.99,128.94,85.7373745]
[1742195070880,16.44936178,128.97,128.94,85.7373745]
[1742195071190,16.44936178,128.96,128.94,85.7373745]
[1742195071398,16.44936178,128.95,128.91,85.6231745]
[1742195071578,16.44936178,128.92,128.91,78.0450745]
[1742195071774,16.44936178,128.92,128.91,0.063]
[1742195073290,24.20506178,128.94,128.91,0.063]
[1742195073491,16.44936178,128.92,128.91,0.063]
[1742195074477,24.20606178,128.92,128.91,0.063]
[1742195074879,7.7555,128.94,128.91,0.063]
[1742195075220,16.44936178,128.94,128.91,0.063]
[1742195075787,16.44936178,128.93,128.91,0.063]
[1742195077500,7.7525,128.99,128.91,7.023]
[1742195077704,7.7525,128.99,128.91,23.47236178]
[1742195077877,16.44936178,128.96,128.91,23.47236178]
[1742195078076,16.44936178,128.96,128.92,7.7567]
[1742195078687,16.44936178,128.97,128.92,7.7567]
[1742195078892,16.44936178,128.97,128.92,24.20606178]
[1742195081487,16.44936178,128.97,128.92,102.18813628]
[1742195081689,16.44936178,128.96,128.92,77.9820745]
[1742195081902,16.44936178,129.0,128.92,77.9820745]
[1742195081903,16.44936178,128.94,128.92,77.9820745]
[1742195082287,24.20436178,128.95,128.92,77.9820745]
[1742195082493,16.44936178,128.95,128.92,77.9820745]
[1742195082988,16.44936178,128.94,128.92,77.9820745]
[1742195084621,24.20446178,128.95,128.92,77.9820745]
[1742195085110,16.44936178,128.94,128.92,77.9820745]
[1742195085506,16.44936178,128.96,128.92,77.9820745]
[1742195085806,16.44936178,128.97,128.92,85.7387745]
[1742195086188,24.20326178,128.97,128.92,85.7387745]
[1742195086613,16.44936178,128.96,128.92,77.9820745]
[1742195087911,24.20376178,128.96,128.92,77.9820745]
[1742195088109,24.20376178,128.96,128.92,85.7386745]
[1742195088588,24.20376178,128.96,128.92,77.9820745]
[1742195089195,16.44936178,128.95,128.92,77.9820745]
[1742195089409,16.44936178,128.94,128.92,77.9820745]
[1742195089599,16.44936178,128.94,128.91,0.063]
[1742195089600,16.44936178,128.93,128.91,0.063]
[1742195089790,16.44936178,128.92,128.91,0.063]
[1742195091889,24.20606178,128.92,128.91,0.063]
[1742195098213,16.44936178,128.92,128.91,0.063]
[1742195099522,24.20606178,128.92,128.91,0.063]
[1742195102814,24.34822335,128.92,128.91,0.063]
[1742195103197,18.44253974,128.92,128.91,0.063]
[1742195103523,20.0,128.89,128.86,0.063]
[1742195103695,0.64216157,128.91,128.8,6.586]
[1742195103696,20.0,128.84,128.8,6.586]
[1742195104012,232.51906157,128.88,128.8,8.1304]
[1742195104013,10.54367817,128.83,128.8,8.1304]
[1742195104222,252.14804462,128.88,128.81,0.14216157]
[1742195104223,10.54367817,128.87,128.81,0.14216157]
[1742195104395,10.54367817,128.86,128.81,88.52575267]
[1742195105110,16.47985484,128.86,128.81,94.46192934]
[1742195105821,16.47985484,128.86,128.82,16.47985484]
[1742195106119,16.47985484,128.86,128.81,406.46192934]
[1742195106419,79.32856157,128.92,128.85,0.14216157]
[1742195106420,19.3921,128.92,128.85,0.14216157]
[1742195106600,12.10794978,128.94,128.88,16.47985484]
[1742195106802,12.10794978,128.94,128.89,16.47985484]
[1742195107112,12.10794978,128.94,128.91,16.47985484]
[1742195107414,12.10794978,128.94,128.93,16.47985484]
[1742195107599,0.03,128.96,128.93,94.46192934]
[1742195107793,0.03,128.96,128.95,6.586]
[1742195108396,24.26415484,128.96,128.93,77.9820745]
[1742195109304,16.50985484,128.96,128.93,77.9820745]
[1742195109514,0.03,128.96,128.93,77.9820745]
[1742195109824,16.50985484,128.96,128.93,77.9820745]
[1742195110001,0.03,128.96,128.93,77.9820745]
[1742195110207,16.50985484,128.96,128.93,77.9820745]
[1742195110502,0.03,128.96,128.93,77.9820745]
[1742195111113,16.47985484,128.95,128.93,77.9820745]
[1742195111497,16.47985484,128.94,128.93,77.9820745]
[1742195111698,24.23585484,128.94,128.92,6.586]
[1742195111905,16.47985484,128.93,128.92,6.586]
[1742195112104,16.47985484,128.93,128.9,77.9820745]
[1742195112297,7.756,128.94,128.9,77.9820745]
[1742195112503,16.47985484,128.92,128.9,77.9820745]
[1742195113828,24.23665484,128.92,128.9,77.9820745]
[1742195114707,16.47985484,128.91,128.89,6.586]
[1742195114922,16.47985484,128.9,128.89,6.586]
[1742195116530,16.47985484,128.88,128.87,77.9820745]
[1742195117802,7.7597,128.87,128.83,84.5618745]
[1742195118014,16.47985484,128.85,128.83,84.5618745]
[1742195119309,16.47985484,128.86,128.83,84.5618745]
[1742195119927,16.47985484,128.85,128.83,84.5618745]
[1742195120426,7.7591,128.88,128.83,92.3239745]
[1742195120629,16.47985484,128.86,128.83,92.3239745]
[1742195120932,16.47985484,128.86,128.83,84.5618745]
[1742195121727,16.47985484,128.85,128.83,84.5618745]
[1742195124131,16.47985484,128.86,128.83,92.3236745]
[1742195124326,20.0,128.89,128.84,16.47985484]
[1742195124523,16.47985484,128.91,128.86,16.47985484]
[1742195125525,16.47985484,128.91,128.85,18.64964886]
[1742195125526,16.47985484,128.89,128.85,18.64964886]
[1742195125725,16.47985484,128.88,128.85,77.9820745]
[1742195126109,16.47985484,128.88,128.85,85.7429745]
[1742195126510,16.47985484,128.88,128.85,77.9820745]
[1742195126919,16.47985484,128.87,128.85,77.9820745]
[1742195128534,16.47985484,128.87,128.85,78.0450745]
[1742195128923,0.03,128.88,128.85,78.0450745]
[1742195129117,16.50985484,128.88,128.85,78.0450745]
[1742195129524,24.26895484,128.88,128.85,78.0450745]
[1742195130514,16.50985484,128.88,128.85,78.0450745]
[1742195131039,24.26905484,128.88,128.85,78.0450745]
[1742195131218,16.47985484,128.87,128.85,0.063]
[1742195131414,16.47985484,128.86,128.85,0.063]
[1742195131938,24.24015484,128.86,128.85,0.063]
[1742195134236,16.47985484,128.86,128.85,0.063]
[1742195137424,24.24015484,128.86,128.85,0.063]
[1742195138043,16.47985484,128.86,128.85,0.063]
[1742195141430,24.24015484,128.86,128.85,0.063]
[1742195143326,16.47985484,128.86,128.85,0.063]
[1742195143722,24.24015484,128.86,128.85,0.063]
[1742195155271,10.54993558,128.86,128.85,0.063]
[1742195156465,18.31023558,128.86,128.85,0.063]
[1742195168284,0.03,128.87,128.85,6.5958]
[1742195168460,0.03,128.87,128.85,17.14573558]
[1742195169281,0.03,128.87,128.86,10.54993558]
[1742195170378,0.03,128.87,128.86,18.31023558]
[1742195170677,0.03,128.87,128.86,7.7603]
[1742195170867,0.03,128.87,128.85,24.90643558]
[1742195171067,0.03,128.87,128.85,14.3565]
[1742195171783,10.57993558,128.87,128.85,6.5958]
[1742195171964,10.54993558,128.86,128.85,6.5958]
[1742195172155,10.54993558,128.86,128.85,0.063]
[1742195172570,18.31023558,128.86,128.85,0.063]
[1742195182578,37.71113558,128.86,128.79,6.354]
[1742195182779,10.54993558,128.81,128.79,6.354]
[1742195182974,10.54993558,128.82,128.79,6.354]
[1742195184260,18.31243558,128.83,128.79,6.354]
[1742195184463,10.54993558,128.82,128.79,6.354]
[1742195185171,10.54993558,128.81,128.79,6.354]
[1742195187991,10.54993558,128.8,128.78,0.063]
[1742195188167,10.54993558,128.79,128.78,0.063]
[1742195189583,10.69209715,128.79,128.77,0.063]
[1742195189885,18.31503558,128.78,128.77,0.063]
[1742195193279,25.09503558,128.78,128.77,0.063]
[1742195193976,7.7651,128.78,128.77,0.063]
[1742195194174,10.54993558,128.79,128.77,0.063]
[1742195194893,10.54993558,128.78,128.77,0.063]
[1742195195191,27.1717,128.81,128.77,0.063]
[1742195195391,10.54993558,128.78,128.77,0.063]
[1742195195592,27.1717,128.81,128.77,0.063]
[1742195195890,10.54993558,128.78,128.77,0.063]
[1742195197301,18.31503558,128.78,128.77,0.063]
[1742195201880,18.34503558,128.78,128.77,0.063]
[1742195206798,0.03,128.78,128.77,0.063]
[1742195206990,0.03,128.78,128.77,7.8079]
[1742195208885,10.57993558,128.78,128.77,6.1858]
[1742195210402,10.57993558,128.78,128.77,0.063]
[1742195211702,0.03,128.78,128.77,0.063]
[1742195217596,0.03,128.78,128.77,35.77138444]
[1742195217823,0.03,128.78,128.77,113.89562051]
[1742195218110,30.54993558,128.84,128.78,18.64964886]
[1742195218286,205.61216157,128.87,128.81,7.7633]
[1742195218488,10.54993558,128.86,128.82,6.5088]
[1742195219101,10.54993558,128.83,128.81,7.7633]
[1742195219905,30.54993558,128.84,128.81,7.7633]
[1742195220321,20.03,128.87,128.81,24.82203558]
[1742195220612,10.54993558,128.86,128.81,24.82203558]
[1742195220820,10.54993558,128.86,128.81,14.2721]
[1742195221423,10.54993558,128.85,128.81,14.2721]
[1742195221716,10.54993558,128.85,128.81,33.6805]
[1742195221916,0.03,128.91,128.89,0.14216157]
[1742195222098,0.03,128.91,128.9,36.64390758]
[1742195222295,0.0001,128.92,128.91,18.933972]
[1742195222498,0.0001,128.92,128.91,25.442772]
[1742195222907,0.0001,128.92,128.91,35.99270758]
[1742195223307,12.10794978,128.94,128.91,35.99270758]
[1742195223516,12.10794978,128.94,128.93,10.69209715]
[1742195223714,12.10794978,128.94,128.93,18.44819715]
[1742195224220,107.41353383,128.99,128.93,18.44819715]
[1742195224221,0.03,128.96,128.94,18.64964886]
[1742195224516,0.03,128.96,128.95,29.19958444]
[1742195224819,0.03,128.96,128.95,36.35958444]
[1742195225199,0.03,128.96,128.95,42.25565678]
[1742195225399,0.03,128.96,128.95,25.80964886]
[1742195225807,2.7242492,129.02,128.96,7.7543]
[1742195226009,16.44600792,129.01,128.96,27.1401]
[1742195226200,16.44600792,129.0,128.96,27.1401]
[1742195227521,16.44600792,128.99,128.96,7.7543]